fUST/lending_fUST_20250901
["ID","MTS","AMOUNT","RATE_DAILY","PERIOD"]
[382594360,1756675839420,-480.0,0.00016507,2]
[382594362,1756675839431,-150.0,0.00016507,2]
[382594364,1756675839440,-480.0,0.00016507,2]
[382594366,1756675839449,-442.25,0.00016507,2]
[382594368,1756675839458,-480.0,0.00016507,2]
[382594370,1756675839467,-480.0,0.00016507,2]
[382594372,1756675839476,-480.0,0.00016507,2]
[382594374,1756675839485,-381.87211716,0.00016507,2]
[382594376,1756675839494,-913.56,0.00016507,2]
[382594378,1756675839503,-480.0,0.00016507,2]
[382594380,1756675839513,-891.2,0.00016507,2]
[382594382,1756675839522,-480.0,0.00016507,2]
[382594384,1756675839531,-480.0,0.00016507,2]
[382594386,1756675839541,-837.04,0.00016507,2]
[382594388,1756675839551,-480.0,0.00016507,2]
[382594390,1756675839561,-480.0,0.00016507,2]
[382594392,1756675839570,-480.0,0.00016507,2]
[382594394,1756675839580,-480.0,0.00016507,2]
[382594396,1756675839591,-480.0,0.00016507,2]
[382594419,1756675839795,-480.0,0.00016507,2]
[382594421,1756675839807,-480.0,0.00016507,2]
[382594423,1756675839817,-480.0,0.00016507,2]
[382594425,1756675839827,-480.0,0.00016507,2]
[382594427,1756675839837,-480.0,0.00016507,2]
[382594429,1756675839846,-578.12,0.00016507,2]
[382594431,1756675839855,-480.0,0.00016507,2]
[382594433,1756675839864,-480.0,0.00016507,2]
[382594435,1756675839874,-480.0,0.00016507,2]
[382594437,1756675839883,-480.0,0.00016507,2]
[382594439,1756675839892,-480.0,0.00016507,2]
[382594441,1756675839901,-480.0,0.00016507,2]
[382594443,1756675839911,-540.78,0.00016507,2]
[382594445,1756675839920,-480.0,0.00016507,2]
[382594447,1756675839930,-480.0,0.00016507,2]
[382594449,1756675839939,-480.0,0.00016507,2]
[382594451,1756675839951,-488.09,0.00016507,2]
[382594453,1756675839960,-480.0,0.00016507,2]
[382594455,1756675839969,-480.0,0.00016507,2]
[382594457,1756675839979,-480.0,0.00016507,2]
[382594458,1756675839988,-480.0,0.00016507,2]
[382594461,1756675839999,-480.0,0.00016507,2]
[382594463,1756675840008,-480.0,0.00016507,2]
[382594465,1756675840019,-480.0,0.00016507,2]
[382594467,1756675840028,-480.0,0.00016507,2]
[382594469,1756675840038,-480.0,0.00016507,2]
[382594471,1756675840047,-480.0,0.00016507,2]
[382594473,1756675840058,-480.0,0.00016507,2]
[382594475,1756675840068,-618.13,0.00016507,2]
[382594477,1756675840078,-717.91,0.00016507,2]
[382594479,1756675840087,-480.0,0.00016507,2]
[382594481,1756675840096,-480.0,0.00016507,2]
[382594483,1756675840105,-480.0,0.00016507,2]
[382594485,1756675840115,-480.0,0.00016507,2]
[382594488,1756675840125,-485.34,0.00016507,2]
[382594490,1756675840134,-480.0,0.00016507,2]
[382594492,1756675840144,-480.0,0.00016507,2]
[382594494,1756675840153,-480.0,0.00016507,2]
[382594496,1756675840163,-480.0,0.00016507,2]
[382594498,1756675840173,-480.0,0.00016507,2]
[382594499,1756675840183,-480.0,0.00016507,2]
[382594501,1756675840192,-480.0,0.00016507,2]
[382594503,1756675840202,-480.0,0.00016507,2]
[382594505,1756675840212,-480.0,0.00016507,2]
[382594507,1756675840221,-707.45,0.00016507,2]
[382594510,1756675840232,-480.0,0.00016507,2]
[382594511,1756675840241,-480.0,0.00016507,2]
[382594513,1756675840251,-480.0,0.00016507,2]
[382594515,1756675840261,-744.85,0.00016507,2]
[382594517,1756675840270,-987.14,0.00016507,2]
[382594519,1756675840280,-480.0,0.00016507,2]
[382594521,1756675840289,-500.0,0.00016507,2]
[382594523,1756675840298,-590.57,0.00016507,2]
[382594525,1756675840308,-480.0,0.00016507,2]
[382594527,1756675840317,-480.0,0.00016507,2]
[382594529,1756675840327,-480.0,0.00016507,2]
[382594531,1756675840336,-480.0,0.00016507,2]
[382594533,1756675840345,-480.0,0.00016507,2]
[382594535,1756675840354,-480.0,0.00016507,2]
[382594537,1756675840364,-480.0,0.00016507,2]
[382594539,1756675840374,-500.0,0.00016507,2]
[382594541,1756675840383,-482.59720954,0.00016507,2]
[382594543,1756675840392,-480.0,0.00016507,2]
[382594545,1756675840401,-405.51587298,0.00016507,2]
[382594547,1756675840411,-480.0,0.00016507,2]
[382594549,1756675840421,-1000.0,0.00016507,2]
[382594551,1756675840430,-1000.0,0.00016507,2]
[382594553,1756675840440,-1000.0,0.00016507,2]
[382594555,1756675840450,-1000.0,0.00016507,2]
[382594557,1756675840459,-480.0,0.00016507,2]
[382594559,1756675840468,-1000.0,0.00016507,2]
[382594561,1756675840477,-1000.0,0.00016507,2]
[382594563,1756675840487,-1000.0,0.00016507,2]
[382594565,1756675840495,-1000.0,0.00016507,2]
[382594567,1756675840505,-1000.0,0.00016507,2]
[382594569,1756675840514,-1000.0,0.00016507,2]
[382594571,1756675840523,-480.0,0.00016507,2]
[382594573,1756675840533,-603.25,0.00016507,2]
[382594575,1756675840543,-480.0,0.00016507,2]
[382594577,1756675840552,-549.86,0.00016507,2]
[382594579,1756675840562,-480.0,0.00016507,2]
[382594581,1756675840571,-480.0,0.00016507,2]
[382594583,1756675840581,-480.0,0.00016507,2]
[382594585,1756675840591,-480.0,0.00016507,2]
[382594587,1756675840600,-482.4887696,0.00016507,2]
[382594589,1756675840609,-480.0,0.00016507,2]
[382594591,1756675840619,-480.0,0.00016507,2]
[382594593,1756675840629,-480.0,0.00016507,2]
[382594594,1756675840638,-480.0,0.00016507,2]
[382594596,1756675840648,-480.0,0.00016507,2]
[382594598,1756675840657,-480.0,0.00016507,2]
[382594600,1756675840666,-480.0,0.00016507,2]
[382594602,1756675840676,-480.0,0.00016507,2]
[382594604,1756675840685,-773.62,0.00016507,2]
[382594606,1756675840695,-480.0,0.00016507,2]
[382594608,1756675840705,-480.0,0.00016507,2]
[382594610,1756675840714,-480.0,0.00016507,2]
[382594612,1756675840723,-480.0,0.00016507,2]
[382594614,1756675840733,-480.0,0.00016507,2]
[382594616,1756675840742,-480.0,0.00016507,2]
[382594618,1756675840752,-480.0,0.00016507,2]
[382594620,1756675840761,-480.0,0.00016507,2]
[382594622,1756675840770,-480.0,0.00016507,2]
[382594624,1756675840780,-480.0,0.00016507,2]
[382594626,1756675840789,-480.0,0.00016507,2]
[382594628,1756675840799,-632.38,0.00016539,3]
[382594630,1756675840808,-1000.0,0.00016549,2]
[382594632,1756675840818,-1000.0,0.00016549,2]
[382594634,1756675840827,-1000.0,0.00016549,2]
[382594636,1756675840837,-1000.0,0.00016549,2]
[382594638,1756675840846,-1000.0,0.00016549,2]
[382594640,1756675840856,-215.82175852,0.00016549,2]
[382594642,1756675840866,-480.0,0.0001655,2]
[382594644,1756675840875,-480.0,0.0001655,2]
[382594646,1756675840884,-480.0,0.0001655,2]
[382594649,1756675840894,-480.0,0.0001655,2]
[382594650,1756675840903,-480.0,0.0001655,2]
[382594653,1756675840912,-480.0,0.0001655,2]
[382594654,1756675840922,-481.07907518,0.0001655,2]
[382594656,1756675840931,-480.0,0.0001655,2]
[382594658,1756675840940,-480.0,0.0001655,2]
[382594661,1756675840954,-480.0,0.0001655,2]
[382594663,1756675840964,-480.0,0.0001655,2]
[382594665,1756675840973,-731.65,0.0001655,2]
[382594666,1756675840982,-728.1,0.0001655,2]
[382594669,1756675840991,-526.08976141,0.0001655,2]
[382594670,1756675841001,-913.54,0.0001655,2]
[382594672,1756675841010,-489.6535696,0.0001655,2]
[382594674,1756675841019,-481.39767338,0.0001655,2]
[382594676,1756675841028,-480.00000001,0.0001655,2]
[382594679,1756675841038,-536.58,0.0001655,2]
[382594680,1756675841048,-480.0,0.0001655,2]
[382594683,1756675841059,-773.23,0.0001655,2]
[382594684,1756675841068,-480.0,0.0001655,2]
[382594686,1756675841077,-480.0,0.0001655,2]
[382594688,1756675841087,-480.0,0.0001655,2]
[382594690,1756675841096,-480.0,0.0001655,2]
[382594692,1756675841106,-480.0,0.0001655,2]
[382594695,1756675841116,-480.0,0.0001655,2]
[382594696,1756675841129,-480.0,0.0001655,2]
[382594698,1756675841138,-480.0,0.0001655,2]
[382594700,1756675841148,-599.00710125,0.0001655,2]
[382594702,1756675841158,-480.0,0.0001655,2]
[382594704,1756675841167,-480.0,0.0001655,2]
[382594706,1756675841177,-303.32377065,0.0001655,2]
[382594708,1756675841186,-480.0,0.0001655,2]
[382594710,1756675841196,-480.0,0.0001655,2]
[382594712,1756675841206,-480.0,0.0001655,2]
[382594714,1756675841216,-480.0,0.0001655,2]
[382594716,1756675841225,-480.0,0.0001655,2]
[382594718,1756675841235,-480.0,0.0001655,2]
[382594720,1756675841244,-480.0,0.0001655,2]
[382594722,1756675841254,-480.0,0.0001655,2]
[382594724,1756675841264,-480.0,0.0001655,2]
[382594726,1756675841274,-172.91525721,0.0001668,2]
[382594728,1756675841284,-6895.65830006,0.00016771,2]
[382594730,1756675841295,-194.72792766,0.00016771,2]
[382594732,1756675841304,-151.0,0.00016771,2]
[382594734,1756675841314,-151.0,0.00016771,2]
[382594736,1756675841324,-151.0,0.00016771,2]
[382594738,1756675841334,-151.0,0.00016771,2]
[382594740,1756675841343,-151.0,0.00016771,2]
[382594741,1756675841352,-151.0,0.00016771,2]
[382594743,1756675841361,-151.0,0.00016771,2]
[382594745,1756675841370,-151.0,0.00016771,2]
[382594747,1756675841379,-151.0,0.00016771,2]
[382594749,1756675841388,-151.0,0.00016771,2]
[382594751,1756675841398,-151.0,0.00016771,2]
[382594753,1756675841407,-500.0,0.00016773,2]
[382594755,1756675841417,-500.0,0.00016773,2]
[382594757,1756675841427,-500.0,0.00016773,2]
[382594759,1756675841436,-500.0,0.00016773,2]
[382594761,1756675841445,-500.0,0.00016773,2]
[382594763,1756675841457,-500.0,0.00016773,2]
[382594765,1756675841466,-500.0,0.00016773,2]
[382594767,1756675841476,-500.0,0.00016773,2]
[382594769,1756675841486,-500.0,0.00016773,2]
[382594771,1756675841495,-480.0,0.00016777,2]
[382594773,1756675841504,-480.0,0.00016777,2]
[382594775,1756675841513,-722.63,0.00016778,2]
[382594777,1756675841523,-480.0,0.00016778,2]
[382594778,1756675841532,-480.0,0.00016778,2]
[382594780,1756675841541,-480.0,0.00016778,2]
[382594782,1756675841551,-480.0,0.00016778,2]
[382594784,1756675841560,-480.0,0.00016778,2]
[382594786,1756675841570,-1344.28,0.00016778,2]
[382594789,1756675841579,-480.0,0.00016778,2]
[382594791,1756675841588,-480.0,0.00016778,2]
[382594792,1756675841598,-276.06647076,0.00016778,2]
[382594794,1756675841607,-721.82,0.00016778,2]
[382594796,1756675841617,-1160.18,0.00016778,2]
[382594798,1756675841626,-480.0,0.00016778,2]
[382594800,1756675841635,-480.0,0.00016778,2]
[382594802,1756675841645,-480.0,0.00016778,2]
[382594804,1756675841656,-1069.26,0.00016778,2]
[382594806,1756675841666,-495.79,0.00016778,2]
[382594808,1756675841677,-480.0,0.00016778,2]
[382594810,1756675841686,-480.0,0.00016778,2]
[382594812,1756675841696,-480.0,0.00016778,2]
[382594814,1756675841705,-480.0,0.00016778,2]
[382594816,1756675841715,-677.17,0.00016778,2]
[382594818,1756675841724,-668.84,0.00016778,2]
[382594820,1756675841733,-500.0,0.00016778,2]
[382594822,1756675841743,-614.86,0.00016779,2]
[382594824,1756675841752,-480.0,0.00016779,2]
[382594826,1756675841761,-480.0,0.00016779,2]
[382594827,1756675841770,-480.0,0.00016779,2]
[382594829,1756675841779,-480.0,0.00016779,2]
[382594831,1756675841790,-480.0,0.00016779,2]
[382594833,1756675841800,-480.0,0.00016779,2]
[382594835,1756675841810,-480.0,0.00016779,2]
[382594837,1756675841819,-166.09790573,0.00016779,2]
[382594839,1756675841828,-480.0,0.00016779,2]
[382594841,1756675841838,-480.0,0.00016779,2]
[382594843,1756675841847,-480.0,0.00016779,2]
[382594845,1756675841856,-480.0,0.00016779,2]
[382594847,1756675841865,-480.0,0.00016779,2]
[382594849,1756675841875,-480.0,0.00016779,2]
[382594851,1756675841885,-942.49,0.00016779,2]
[382594853,1756675841894,-549.24,0.00016779,2]
[382594855,1756675841903,-480.0,0.00016779,2]
[382594857,1756675841913,-399.98078918,0.00016779,2]
[382594859,1756675841923,-499.82,0.00016779,2]
[382594861,1756675841932,-646.4,0.00016779,2]
[382594863,1756675841942,-663.12,0.00016779,2]
[382594865,1756675841956,-533.25,0.00016779,2]
[382594866,1756675841966,-480.0,0.00016779,2]
[382594868,1756675841975,-480.0,0.00016779,2]
[382594870,1756675841985,-480.0,0.00016779,2]
[382594872,1756675841995,-480.0,0.00016779,2]
[382594874,1756675842004,-480.0,0.00016779,2]
[382594876,1756675842014,-480.0,0.00016779,2]
[382594878,1756675842024,-480.0,0.00016779,2]
[382594880,1756675842034,-480.0,0.00016779,2]
[382594882,1756675842044,-480.0,0.00016779,2]
[382594884,1756675842053,-480.0,0.00016779,2]
[382594886,1756675842064,-480.0,0.00016779,2]
[382594888,1756675842073,-480.0,0.00016779,2]
[382594890,1756675842083,-854.56,0.00016779,2]
[382594892,1756675842092,-508.2,0.00016779,2]
[382594894,1756675842102,-480.0,0.00016779,2]
[382594896,1756675842112,-665.21,0.00016779,2]
[382594898,1756675842121,-480.0,0.00016779,2]
[382594900,1756675842130,-480.0,0.00016779,2]
[382594902,1756675842140,-480.0,0.00016779,2]
[382594904,1756675842149,-480.0,0.00016779,2]
[382594906,1756675842158,-480.0,0.00016779,2]
[382594908,1756675842168,-575.28,0.00016779,2]
[382594909,1756675842178,-480.0,0.00016779,2]
[382594911,1756675842188,-480.0,0.00016779,2]
[382594913,1756675842197,-572.52,0.00016779,2]
[382594915,1756675842207,-480.0,0.00016779,2]
[382594917,1756675842217,-480.0,0.00016779,2]
[382594919,1756675842227,-480.0,0.00016779,2]
[382594921,1756675842237,-480.0,0.00016779,2]
[382594923,1756675842248,-480.0,0.00016779,2]
[382594925,1756675842258,-617.6,0.00016779,2]
[382594927,1756675842267,-637.0,0.00016779,2]
[382594929,1756675842277,-415.13902675,0.00016779,2]
[382594931,1756675842287,-712.38,0.00016779,2]
[382594933,1756675842297,-480.0,0.00016779,2]
[382594935,1756675842307,-4115.77,0.00016779,2]
[382594937,1756675842317,-480.0,0.00016779,2]
[382594939,1756675842327,-480.0,0.00016779,2]
[382594941,1756675842336,-614.41,0.00016779,2]
[382594943,1756675842346,-3097.79,0.00016779,2]
[382594944,1756675842356,-582.88,0.00016779,2]
[382594946,1756675842365,-480.0,0.00016779,2]
[382594948,1756675842375,-480.0,0.00016779,2]
[382594950,1756675842384,-480.0,0.00016779,2]
[382594952,1756675842394,-480.0,0.00016779,2]
[382594953,1756675842404,-810.06,0.00016779,2]
[382594955,1756675842413,-655.66,0.00016779,2]
[382594956,1756675842422,-526.1284565,0.00016779,2]
[382594957,1756675842431,-1499.22,0.00016779,2]
[382594958,1756675842440,-625.4,0.00016779,2]
[382594959,1756675842449,-480.0,0.00016779,2]
[382594960,1756675842459,-697.17,0.00016779,2]
[382594961,1756675842468,-480.0,0.00016779,2]
[382594962,1756675842478,-480.0,0.00016779,2]
[382594963,1756675842487,-662.67,0.00016779,2]
[382594964,1756675842496,-990.81,0.00016779,2]
[382594965,1756675842505,-2638.18,0.00016779,2]
[382594966,1756675842514,-586.77,0.00016779,2]
[382594967,1756675842524,-480.0,0.00016779,2]
[382594968,1756675842533,-480.0,0.00016779,2]
[382594969,1756675842542,-480.0,0.00016779,2]
[382594970,1756675842551,-480.0,0.00016779,2]
[382594971,1756675842561,-3490.32,0.00016779,2]
[382594972,1756675842570,-1188.84,0.00016779,2]
[382594973,1756675842579,-487.97,0.00016779,2]
[382594974,1756675842588,-480.0,0.00016779,2]
[382594975,1756675842597,-480.0,0.00016779,2]
[382594976,1756675842606,-480.0,0.00016779,2]
[382594977,1756675842615,-653.57,0.00016779,2]
[382594978,1756675842623,-617.61,0.00016779,2]
[382594979,1756675842632,-480.0,0.00016779,2]
[382594980,1756675842641,-2279.9,0.00016779,2]
[382594981,1756675842650,-480.0,0.00016779,2]
[382594982,1756675842659,-480.0,0.00016779,2]
[382594983,1756675842668,-607.62937422,0.00016779,2]
[382594984,1756675842678,-704.08,0.00016779,2]
[382594985,1756675842687,-774.5,0.00016779,2]
[382594986,1756675842695,-480.0,0.00016779,2]
[382594987,1756675842704,-480.0,0.00016779,2]
[382594988,1756675842714,-480.0,0.00016779,2]
[382594989,1756675842723,-480.0,0.00016779,2]
[382594990,1756675842732,-480.0,0.00016779,2]
[382594991,1756675842741,-480.0,0.00016779,2]
[382594992,1756675842751,-480.0,0.0001678,2]
[382594993,1756675842761,-480.0,0.0001678,2]
[382594994,1756675842770,-210.59940042,0.0001678,2]
[382594995,1756675842779,-480.0,0.0001678,2]
[382594996,1756675842789,-480.0,0.0001678,2]
[382594997,1756675842799,-666.63,0.0001678,2]
[382594998,1756675842808,-480.0,0.0001678,2]
[382594999,1756675842818,-558.76,0.0001678,2]
[382595000,1756675842828,-480.0,0.0001678,2]
[382595001,1756675842838,-480.0,0.0001678,2]
[382595002,1756675842847,-922.16,0.0001678,2]
[382595004,1756675842857,-480.0,0.0001678,2]
[382595005,1756675842866,-480.0,0.0001678,2]
[382595007,1756675842876,-480.0,0.0001678,2]
[382595009,1756675842885,-480.0,0.0001678,2]
[382595011,1756675842895,-697.02,0.0001678,2]
[382595013,1756675842904,-880.22,0.0001678,2]
[382595015,1756675842913,-480.0,0.0001678,2]
[382595017,1756675842923,-787.46,0.0001678,2]
[382595019,1756675842932,-480.0,0.0001678,2]
[382595021,1756675842941,-772.07,0.0001678,2]
[382595023,1756675842954,-480.0,0.0001678,2]
[382595025,1756675842963,-480.0,0.0001678,2]
[382595027,1756675842973,-480.0,0.0001678,2]
[382595029,1756675842982,-370.23313174,0.0001678,2]
[382595031,1756675842992,-480.0,0.0001678,2]
[382595033,1756675843004,-710.36,0.0001678,2]
[382595035,1756675843013,-480.0,0.0001678,2]
[382595037,1756675843023,-722.24,0.0001678,2]
[382595039,1756675843033,-917.07,0.0001678,2]
[382595041,1756675843044,-480.0,0.0001678,2]
[382595044,1756675843054,-480.0,0.0001678,2]
[382595045,1756675843063,-866.78,0.0001678,2]
[382595048,1756675843073,-698.52,0.0001678,2]
[382595049,1756675843083,-698.03,0.0001678,2]
[382595051,1756675843093,-988.61,0.0001678,2]
[382595053,1756675843104,-480.0,0.0001678,2]
[382595055,1756675843114,-480.0,0.0001678,2]
[382595057,1756675843125,-480.0,0.0001678,2]
[382595060,1756675843135,-480.0,0.0001678,2]
[382595063,1756675843145,-762.2,0.0001678,2]
[382595065,1756675843156,-480.0,0.0001678,2]
[382595067,1756675843167,-1596.59,0.0001678,2]
[382595069,1756675843178,-1207.89,0.0001678,2]
[382595071,1756675843189,-733.38,0.0001678,2]
[382595073,1756675843199,-480.0,0.0001678,2]
[382595075,1756675843210,-480.0,0.0001678,2]
[382595077,1756675843221,-515.12,0.0001678,2]
[382595079,1756675843232,-923.88,0.0001678,2]
[382595080,1756675843242,-480.0,0.0001678,2]
[382595082,1756675843251,-530.77,0.0001678,2]
[382595084,1756675843261,-952.53,0.0001678,2]
[382595086,1756675843270,-480.0,0.0001678,2]
[382595088,1756675843281,-480.0,0.0001678,2]
[382595090,1756675843291,-480.0,0.0001678,2]
[382595092,1756675843300,-480.0,0.0001678,2]
[382595094,1756675843309,-480.0,0.0001678,2]
[382595096,1756675843318,-622.12,0.0001678,2]
[382595098,1756675843328,-935.42,0.0001678,2]
[382595100,1756675843338,-753.19,0.0001678,2]
[382595103,1756675843348,-635.95,0.0001678,2]
[382595106,1756675843357,-480.0,0.0001678,2]
[382595108,1756675843367,-480.0,0.00016781,2]
[382595110,1756675843376,-480.0,0.00016781,2]
[382595112,1756675843386,-580.15751368,0.00016781,2]
[382595114,1756675843395,-480.0,0.00016781,2]
[382595116,1756675843406,-799.68,0.00016781,2]
[382595118,1756675843416,-480.0,0.00016781,2]
[382595120,1756675843426,-480.0,0.00016781,2]
[382595122,1756675843436,-480.0,0.00016781,2]
[382595124,1756675843445,-480.0,0.00016781,2]
[382595126,1756675843455,-480.0,0.00016781,2]
[382595128,1756675843464,-508.32,0.00016781,2]
[382595130,1756675843474,-480.0,0.00016781,2]
[382595133,1756675843484,-188.77989752,0.00016781,2]
[382595136,1756675843494,-480.0,0.00016781,2]
[382595138,1756675843504,-480.0,0.00016781,2]
[382595140,1756675843513,-480.0,0.00016781,2]
[382595142,1756675843523,-480.0,0.00016781,2]
[382595144,1756675843532,-480.0,0.00016781,2]
[382595146,1756675843542,-231.02036955,0.00016781,2]
[382595148,1756675843551,-480.0,0.00016781,2]
[382595150,1756675843560,-216.66075769,0.00016781,2]
[382595152,1756675843570,-480.0,0.00016781,2]
[382595154,1756675843579,-480.0,0.00016781,2]
[382595156,1756675843588,-480.0,0.00016781,2]
[382595158,1756675843598,-480.0,0.00016781,2]
[382595160,1756675843607,-480.0,0.00016781,2]
[382595161,1756675843616,-929.6,0.00016781,2]
[382595162,1756675843626,-296.54066247,0.00016781,2]
[382595163,1756675843635,-880.96,0.00016781,2]
[382595164,1756675843645,-480.0,0.00016781,2]
[382595165,1756675843655,-480.0,0.00016781,2]
[382595166,1756675843664,-480.0,0.00016781,2]
[382595167,1756675843674,-480.0,0.00016781,2]
[382595168,1756675843684,-480.0,0.00016781,2]
[382595169,1756675843693,-480.0,0.00016781,2]
[382595170,1756675843703,-480.0,0.00016781,2]
[382595171,1756675843712,-913.56,0.00016781,2]
[382595172,1756675843722,-891.2,0.00016781,2]
[382595173,1756675843732,-480.0,0.00016781,2]
[382595174,1756675843742,-837.04,0.00016781,2]
[382595175,1756675843752,-584.79570138,0.00016781,2]
[382595176,1756675843761,-480.0,0.00016781,2]
[382595177,1756675843771,-480.0,0.00016781,2]
[382595178,1756675843780,-480.0,0.00016781,2]
[382595179,1756675843791,-480.0,0.00016781,2]
[382595180,1756675843801,-480.0,0.00016781,2]
[382595181,1756675843978,-480.0,0.00016781,2]
[382595182,1756675843988,-480.0,0.00016781,2]
[382595185,1756675843998,-578.12,0.00016781,2]
[382595186,1756675844008,-551.67363456,0.00016781,2]
[382595188,1756675844019,-480.0,0.00016781,2]
[382595190,1756675844028,-480.0,0.00016781,2]
[382595191,1756675844038,-480.0,0.00016781,2]
[382595192,1756675844047,-480.0,0.00016781,2]
[382595193,1756675844057,-480.0,0.00016781,2]
[382595194,1756675844066,-540.78,0.00016781,2]
[382595195,1756675844076,-480.0,0.00016781,2]
[382595196,1756675844085,-488.09,0.00016781,2]
[382595197,1756675844095,-506.84749519,0.00016781,2]
[382595198,1756675844104,-480.0,0.00016781,2]
[382595199,1756675844114,-480.0,0.00016781,2]
[382595200,1756675844123,-480.0,0.00016781,2]
[382595201,1756675844132,-480.0,0.00016781,2]
[382595202,1756675844141,-444.12,0.00016781,2]
[382595203,1756675844151,-480.0,0.00016781,2]
[382595204,1756675844160,-618.13,0.00016781,2]
[382595205,1756675844170,-717.91,0.00016781,2]
[382595206,1756675844180,-480.0,0.00016781,2]
[382595207,1756675844190,-480.0,0.00016781,2]
[382595208,1756675844200,-485.34,0.00016781,2]
[382595209,1756675844209,-480.0,0.00016781,2]
[382595210,1756675844219,-480.0,0.00016781,2]
[382595211,1756675844228,-480.0,0.00016781,2]
[382595212,1756675844238,-707.45,0.00016781,2]
[382595213,1756675844248,-480.0,0.00016781,2]
[382595214,1756675844257,-480.0,0.00016781,2]
[382595215,1756675844267,-744.85,0.00016781,2]
[382595216,1756675844277,-987.14,0.00016781,2]
[382595217,1756675844287,-480.0,0.00016781,2]
[382595218,1756675844296,-500.0,0.00016781,2]
[382595219,1756675844306,-590.57,0.00016781,2]
[382595220,1756675844316,-480.0,0.00016781,2]
[382595221,1756675844326,-480.0,0.00016781,2]
[382595222,1756675844335,-480.0,0.00016781,2]
[382595223,1756675844345,-480.0,0.00016781,2]
[382595224,1756675844355,-480.0,0.00016781,2]
[382595225,1756675844364,-480.0,0.00016781,2]
[382595226,1756675844374,-480.0,0.00016781,2]
[382595227,1756675844384,-480.0,0.00016781,2]
[382595228,1756675844394,-480.0,0.00016781,2]
[382595229,1756675844403,-603.25,0.00016781,2]
[382595230,1756675844413,-480.0,0.00016781,2]
[382595231,1756675844422,-549.86,0.00016781,2]
[382595232,1756675844432,-480.0,0.00016781,2]
[382595233,1756675844442,-480.0,0.00016781,2]
[382595234,1756675844451,-480.0,0.00016781,2]
[382595235,1756675844462,-480.0,0.00016781,2]
[382595236,1756675844471,-480.0,0.00016781,2]
[382595237,1756675844481,-480.0,0.00016781,2]
[382595238,1756675844492,-480.0,0.00016781,2]
[382595240,1756675844501,-480.0,0.00016781,2]
[382595243,1756675844511,-773.62,0.00016781,2]
[382595244,1756675844520,-480.0,0.00016781,2]
[382595246,1756675844530,-480.0,0.00016781,2]
[382595247,1756675844539,-480.0,0.00016781,2]
[382595248,1756675844549,-480.0,0.00016781,2]
[382595249,1756675844559,-480.0,0.00016781,2]
[382595251,1756675844569,-480.0,0.00016781,2]
[382595253,1756675844579,-480.0,0.00016781,2]
[382595254,1756675844588,-480.0,0.00016781,2]